fUST/lending_fUST_20251110
["ID","MTS","AMOUNT","RATE_DAILY","PERIOD"]
[393501326,1762735779999,182.46164,0.00019306,7]
[393501327,1762735780600,182.46164,0.00019302,7]
[393501328,1762735780883,182.46164,0.00019302,7]
[393501329,1762735781218,182.46164,0.00019302,7]
[393501330,1762735781505,182.46164,0.00019306,7]
[393501331,1762735782124,182.46164,0.00019302,7]
[393501332,1762735782411,182.46164,0.00019302,7]
[393501333,1762735782724,182.46164,0.00019302,7]
[393501334,1762735783021,182.46164,0.00019306,7]
[393501382,1762735832285,-866.0,0.00017871,2]
[393501384,1762735832296,-598.382513,0.00017871,2]
[393501387,1762735832307,-150.0,0.00017956,2]
[393501389,1762735832317,-999.0,0.00018041,2]
[393501391,1762735832328,-3667.4132276,0.00018552,2]
[393501393,1762735832339,-1200.0,0.00018668,2]
[393501395,1762735832354,-3667.4132276,0.00018669,2]
[393501398,1762735832367,-300.0,0.00018763,2]
[393501400,1762735832380,-300.0,0.00018763,2]
[393501402,1762735832391,-300.0,0.00018763,2]
[393501404,1762735832401,-300.0,0.00018763,2]
[393501407,1762735832414,-1200.0,0.00018795,2]
[393501409,1762735832425,-5191.2498539,0.00018801,2]
[393501411,1762735832437,-3667.4132276,0.00019139,2]
[393501413,1762735832448,-500.0,0.00019163,2]
[393501415,1762735832459,-2185.67767439,0.00019204,2]
[393501417,1762735832470,-260.64,0.000193,2]
[393501419,1762735832481,-260.64,0.000193,2]
[393501422,1762735832493,-500.0,0.00019304,2]
[393501424,1762735832503,-151.0,0.00019305,2]
[393501426,1762735832514,-151.0,0.00019305,2]
[393501428,1762735832524,-151.0,0.00019305,2]
[393501430,1762735832535,-707.18690963,0.00019306,2]
[393501433,1762735832549,-698.75772006,0.00019306,2]
[393501530,1762735837907,-500.0,0.00019301,2]
[393501531,1762735837916,-500.0,0.00019301,2]
[393501532,1762735837926,-341.89247031,0.00019301,2]
[393501533,1762735837935,-301.81428003,0.00019301,2]
[393501534,1762735837948,-198.18571997,0.00019301,2]
[393501535,1762735837961,-500.0,0.00019301,2]
[393501536,1762735837971,-500.0,0.00019301,2]
[393501537,1762735837980,-500.0,0.00019301,2]
[393501538,1762735837990,-465.38564881,0.00019301,2]
[393501539,1762735838000,-500.0,0.00019301,2]
[393501540,1762735838010,-500.0,0.00019301,2]
[393501541,1762735838020,-500.0,0.00019301,2]
[393501542,1762735838032,-500.0,0.00019301,2]
[393501543,1762735838043,-500.0,0.00019301,2]
[393501544,1762735838053,-500.0,0.00019301,2]
[393501545,1762735838064,-500.0,0.00019301,2]
[393501546,1762735838075,-500.0,0.00019301,2]
[393501547,1762735838085,-500.0,0.00019301,2]
[393501548,1762735838095,-500.0,0.00019301,2]
[393501549,1762735838106,-500.0,0.00019301,2]
[393501550,1762735838116,-283.87510111,0.00019301,2]
[393501551,1762735838137,-216.12489889,0.00019301,2]
[393501552,1762735838147,-500.0,0.00019301,2]
[393501553,1762735838157,-500.0,0.00019301,2]
[393501554,1762735838167,-500.0,0.00019301,2]
[393501555,1762735838178,-500.0,0.00019301,2]
[393501556,1762735838188,-500.0,0.00019301,2]
[393501557,1762735838198,-500.0,0.00019301,2]
[393501558,1762735838208,-500.0,0.00019301,2]
[393501559,1762735838218,-500.0,0.00019301,2]
[393501560,1762735838228,-500.0,0.00019301,2]
[393501561,1762735838238,-500.0,0.00019301,2]
[393501562,1762735838247,-271.44736277,0.00019301,2]
[393501563,1762735838263,-228.55263723,0.00019301,2]
[393501564,1762735838273,-500.0,0.00019301,2]
[393501565,1762735838283,-500.0,0.00019301,2]
[393501566,1762735838292,-500.0,0.00019301,2]
[393501567,1762735838301,-500.0,0.00019301,2]
[393501568,1762735838311,-500.0,0.00019301,2]
[393501569,1762735838320,-500.0,0.00019301,2]
[393501570,1762735838330,-500.0,0.00019301,2]
[393501571,1762735838339,-500.0,0.00019301,2]
[393501572,1762735838349,-500.0,0.00019301,2]
[393501573,1762735838360,-500.0,0.00019301,2]
[393501574,1762735838369,-221.52894682,0.00019301,2]
[393501575,1762735838379,-500.0,0.00019301,2]
[393501576,1762735838389,-500.0,0.00019301,2]
[393501577,1762735838399,-500.0,0.00019301,2]
[393501578,1762735838409,-500.0,0.00019301,2]
[393501579,1762735838420,-500.0,0.00019301,2]
[393501580,1762735838430,-500.0,0.00019301,2]
[393501581,1762735838441,-500.0,0.00019301,2]
[393501582,1762735838451,-500.0,0.00019301,2]
[393501583,1762735838462,-500.0,0.00019301,2]
[393501584,1762735838472,-500.0,0.00019301,2]
[393501585,1762735838483,-500.0,0.00019301,2]
[393501586,1762735838493,-500.0,0.00019301,2]
[393501587,1762735838502,-500.0,0.00019301,2]
[393501588,1762735838513,-500.0,0.00019301,2]
[393501589,1762735838523,-500.0,0.00019301,2]
[393501590,1762735838534,-500.0,0.00019301,2]
[393501591,1762735838545,-500.0,0.00019301,2]
[393501592,1762735838557,-500.0,0.00019301,2]
[393501593,1762735838567,-500.0,0.00019301,2]
[393501594,1762735838578,-500.0,0.00019301,2]
[393501595,1762735838589,-500.0,0.00019301,2]
[393501596,1762735838601,-500.0,0.00019301,2]
[393501597,1762735838611,-500.0,0.00019301,2]
[393501598,1762735838622,-500.0,0.00019301,2]
[393501599,1762735838632,-500.0,0.00019301,2]
[393501600,1762735838643,-500.0,0.00019301,2]
[393501601,1762735838654,-500.0,0.00019301,2]
[393501602,1762735838665,-559.79485975,0.00019301,2]
[393501603,1762735838675,-500.0,0.00019301,2]
[393501604,1762735838687,-500.0,0.00019301,2]
[393501605,1762735838698,-500.0,0.00019301,2]
[393501606,1762735838708,-500.0,0.00019301,2]
[393501607,1762735838720,-500.0,0.00019301,2]
[393501608,1762735838730,-500.0,0.00019301,2]
[393501609,1762735838741,-500.0,0.00019301,2]
[393501610,1762735838752,-166.38023292,0.00019301,2]
[393501611,1762735838762,-500.0,0.00019301,2]
[393501612,1762735838773,-500.0,0.00019301,2]
[393501613,1762735838786,-500.0,0.00019301,2]
[393501614,1762735838798,-4916.6991467,0.00019306,2]
[393501615,1762735838809,-246.65514275,0.0001936,2]
[393501616,1762735838820,-3667.4132276,0.00019361,2]
[393501617,1762735838836,-500.0,0.00019373,2]
[393501618,1762735838848,-500.0,0.00019373,2]
[393501619,1762735838862,-260.64,0.000194,2]
[393501620,1762735838870,-260.64,0.000194,2]
[393501621,1762735838879,-260.64,0.000194,2]
[393501622,1762735838891,-260.64,0.000195,2]
[393501623,1762735838902,-260.64,0.000195,2]
[393501624,1762735838913,-260.64,0.000195,2]
[393501625,1762735838926,-17.4750745,0.00019578,2]
[393501626,1762735838940,-482.5249255,0.00019578,2]
[393501627,1762735838952,-260.64,0.000196,2]
[393501628,1762735838965,-260.64,0.000196,2]
[393501629,1762735838975,-260.64,0.000196,2]
[393501630,1762735838987,-188.653858,0.00019688,2]
[393501631,1762735838997,-3667.4132276,0.00019695,2]
[393501632,1762735839007,-260.64,0.000197,2]
[393501633,1762735839018,-260.64,0.000197,2]
[393501634,1762735839030,-260.64,0.000198,2]
[393501635,1762735839040,-260.64,0.000198,2]
[393501636,1762735839050,-260.64,0.000198,2]
[393501637,1762735839061,-182.46164,0.00019891,7]
[393501638,1762735839071,-182.46164,0.00019891,7]
[393501639,1762735839082,-182.46164,0.00019891,7]
[393501640,1762735839092,-182.461638,0.00019891,7]
[393501641,1762735839107,-260.64,0.000199,2]
[393501642,1762735839118,-260.64,0.000199,2]
[393501643,1762735839128,-260.64,0.000199,2]
[393501644,1762735839139,-3667.4132276,0.0001995,2]
[393501645,1762735839149,-177.0,0.00019956,2]
[393501646,1762735839160,-585.0,0.0002,2]
[393501647,1762735839171,-260.64,0.0002,2]
[393501648,1762735839182,-260.64,0.0002,2]
[393501649,1762735839193,-260.64,0.0002,2]
[393501650,1762735839203,-3667.4132276,0.00020055,2]
[393501651,1762735839215,-260.64,0.000201,2]
[393501652,1762735839226,-260.64,0.000201,2]
[393501653,1762735839236,-260.64,0.000201,2]
[393501654,1762735839247,-203.85,0.00020145,7]
[393501655,1762735839257,-203.85,0.00020145,7]
[393501656,1762735839267,-203.85,0.00020145,7]
[393501657,1762735839278,-203.85,0.00020145,7]
[393501658,1762735839288,-260.64,0.000202,2]
[393501659,1762735839299,-260.64,0.000202,2]
[393501660,1762735839309,-260.64,0.000202,2]
[393501661,1762735839320,-260.64,0.000203,2]
[393501662,1762735839331,-260.64,0.000203,2]
[393501663,1762735839341,-260.64,0.000203,2]
[393501664,1762735839351,-3667.4132276,0.00020398,2]
[393501665,1762735839361,-260.64,0.000204,2]
[393501666,1762735839371,-260.64,0.000204,2]
[393501667,1762735839380,-260.64,0.000204,2]
[393501668,1762735839390,-572.0,0.00020454,2]
[393501669,1762735839400,-420.0,0.00020457,2]
[393501670,1762735839410,-300.0,0.00020457,2]
[393501671,1762735839419,-258.0,0.00020491,2]
[393501672,1762735839429,-260.64,0.000205,2]
[393501673,1762735839439,-260.64,0.000205,2]
[393501674,1762735839449,-260.64,0.000205,2]
[393501675,1762735839458,-260.64,0.000206,2]
[393501676,1762735839468,-260.64,0.000206,2]
[393501677,1762735839478,-1071.24831604,0.00020693,2]
[393501678,1762735839488,-260.64,0.000207,2]
[393501679,1762735839499,-260.64,0.000207,2]
[393501680,1762735839509,-260.64,0.000207,2]
[393501681,1762735839519,-3667.4132276,0.00020708,2]
[393501682,1762735839529,-353.35856473,0.00020711,2]
[393501683,1762735839539,-260.64,0.000208,2]
[393501685,1762735839548,-260.64,0.000208,2]
[393501686,1762735839558,-260.64,0.000208,2]
[393501687,1762735839567,-260.64,0.000209,2]
[393501688,1762735839577,-260.64,0.000209,2]
[393501689,1762735839586,-260.64,0.000209,2]
[393501690,1762735839596,-3667.4132276,0.00020904,2]
[393501691,1762735839608,-1000.0,0.00021,2]
[393501692,1762735839618,-260.64,0.00021,2]
[393501693,1762735839628,-260.64,0.00021,2]
[393501694,1762735839638,-3667.4132276,0.00021146,2]
[393501695,1762735839648,-335.73844769,0.00021292,5]
[393501696,1762735839659,-1071.24831604,0.00021338,2]
[393501697,1762735839670,-3667.4132276,0.00021597,2]
[393501698,1762735839680,-390.98622671,0.00021613,2]
[393501699,1762735839691,-636.04541652,0.00021614,2]
[393501700,1762735839701,-984.3,0.00021894,10]
[393501701,1762735839711,-3667.4132276,0.00021904,2]
[393501703,1762735839721,-3667.4132276,0.00021951,2]
[393501705,1762735839731,-204.0,0.00021956,2]
[393501707,1762735839740,-1071.24831604,0.00021983,2]
[393501709,1762735839750,-1000.0,0.00022,2]
[393501710,1762735839760,-168.0,0.00022247,2]
[393501711,1762735839770,-3667.4132276,0.00022257,2]
[393501712,1762735839780,-587.0,0.00022303,2]
[393501713,1762735839789,-168.0,0.00022487,2]
[393501714,1762735839800,-1130.74740715,0.00022518,2]
[393501715,1762735839810,-446.84140195,0.0002253,2]
[393501722,1762735839908,-168.0,0.00022571,2]
[393501723,1762735839921,-266.91,0.00022573,2]
[393501725,1762735839931,-3667.4132276,0.00022627,2]
[393501726,1762735839942,-492.9296156,0.00022628,2]
[393501727,1762735839957,-578.31870044,0.00022628,2]
[393501728,1762735839966,-306.0,0.00022775,2]
[393501729,1762735839976,-383.21001361,0.00022782,5]
[393501730,1762735839986,-3667.4132276,0.00022836,2]
[393501732,1762735839996,-168.0,0.00022837,2]
[393501733,1762735840006,-168.0,0.00022888,2]
[393501734,1762735840016,-337.69995079,0.0002316,2]
[393501735,1762735840025,-385.94280091,0.0002316,2]
[393501736,1762735840037,-297.66226532,0.0002316,2]
[393501737,1762735840047,-385.99601814,0.0002316,2]
[393501739,1762735840057,-441.13830644,0.0002316,2]
[393501740,1762735840066,-3667.4132276,0.00023175,2]
[393501741,1762735840076,-6121.13291914,0.00023188,2]
[393501742,1762735840087,-13558.24602755,0.00023188,2]
[393501743,1762735840234,-790.60290983,0.00023188,2]
[393501760,1762735843316,-1088.76828545,0.00023188,2]
[393501772,1762735846455,-1544.999997,0.00023188,2]
[393501773,1762735846565,-483.51,0.00023188,2]
[393501774,1762735846577,-11016.26611802,0.00023188,2]
[393501775,1762735846588,-4494.13693686,0.00023188,2]
[393501778,1762736590897,0.01,0.00013699,2]
[393501779,1762736590919,438.912876,0.00013699,2]
[393501788,1762736746368,1067.928028,0.00032876,120]
[393501820,1762737032230,-228.64019733,0.00020087,2]
[393501822,1762737032240,-985.0,0.00020187,2]
[393501825,1762737032251,-438.922876,0.00020187,2]
[393501827,1762737032260,-73.93692667,0.00020583,2]
[393501829,1762737032271,-76.06307333,0.00020583,2]
[393501831,1762737032280,-534.54761844,0.00021964,30]
[393501833,1762737032291,-465.45238156,0.00021964,30]
[393501836,1762737032300,-168.0,0.00022074,2]
[393501838,1762737032310,-459.0,0.00022101,2]
[393501840,1762737032321,-168.0,0.00022102,2]
[393501842,1762737032335,-3679.6201411,0.00022257,2]
[393501844,1762737032345,-168.0,0.00022315,2]
[393501846,1762737032354,-168.0,0.00022319,2]
[393501848,1762737032363,-168.0,0.00022381,2]
[393501850,1762737032374,-168.0,0.00022388,2]
[393501852,1762737032383,-413.0,0.00022476,2]
[393501854,1762737032392,-168.0,0.00022485,2]
[393501856,1762737032402,-168.0,0.00022534,2]
[393501859,1762737032411,-300.0,0.00022558,2]
[393501861,1762737032422,-312.382314,0.00022559,2]
[393501863,1762737032431,-3064.3038778,0.00022559,2]
[393501865,1762737032440,-4309.3314489,0.00022559,2]
[393501867,1762737032449,-168.0,0.00022578,2]
[393501869,1762737032459,-177.0,0.00022583,2]
[393501871,1762737032468,-3679.6201411,0.00022703,2]
[393501873,1762737032477,-168.0,0.00022759,2]
[393501875,1762737032487,-982.26275741,0.00022854,5]
[393501877,1762737032496,-388.16420434,0.00022865,5]
[393501879,1762737032506,-3679.6201413,0.00022867,2]
[393501881,1762737032515,-198.67627275,0.00022914,2]
[393501883,1762737032524,-459.0,0.00023017,2]
[393501884,1762737032534,-500.0,0.00023086,2]
[393501886,1762737032543,-500.0,0.00023086,2]
[393501888,1762737032552,-500.0,0.00023086,2]
[393501890,1762737032562,-500.0,0.00023086,2]
[393501892,1762737032575,-362.84034193,0.00023086,2]
[393501895,1762737032587,-137.15965807,0.00023086,2]
[393501896,1762737032597,-468.78034293,0.00023086,2]
[393501899,1762737032611,-31.21965707,0.00023086,2]
[393501900,1762737032623,-500.0,0.00023086,2]
[393501902,1762737032633,-283.33872009,0.00023086,2]
[393501905,1762737032646,-500.0,0.00023086,2]
[393501907,1762737032656,-363.49915834,0.00023086,2]
[393501909,1762737032668,-136.50084166,0.00023086,2]
[393501911,1762737032678,-500.0,0.00023086,2]
[393501913,1762737032688,-500.0,0.00023086,2]
[393501915,1762737032699,-500.0,0.00023086,2]
[393501917,1762737032709,-500.0,0.00023086,2]
[393501919,1762737032719,-500.0,0.00023086,2]
[393501921,1762737032729,-326.24792783,0.00023086,2]
[393501923,1762737032739,-500.0,0.00023086,2]
[393501925,1762737032748,-500.0,0.00023086,2]
[393501927,1762737032762,-500.0,0.00023086,2]
[393501929,1762737032771,-500.0,0.00023086,2]
[393501931,1762737032781,-500.0,0.00023086,2]
[393501933,1762737032791,-500.0,0.00023086,2]
[393501935,1762737032801,-500.0,0.00023086,2]
[393501937,1762737032810,-500.0,0.00023086,2]
[393501939,1762737032821,-500.0,0.00023086,2]
[393501941,1762737032830,-500.0,0.00023086,2]
[393501943,1762737032841,-500.0,0.00023086,2]
[393501945,1762737032850,-500.0,0.00023086,2]
[393501947,1762737032860,-500.0,0.00023086,2]
[393501949,1762737032870,-500.0,0.00023086,2]
[393501951,1762737032880,-297.80775098,0.00023086,2]
[393501953,1762737032893,-500.0,0.00023086,2]
[393501955,1762737032902,-500.0,0.00023086,2]
[393501957,1762737032913,-500.0,0.00023086,2]
[393501959,1762737032925,-500.0,0.00023086,2]
[393501961,1762737032935,-500.0,0.00023086,2]
[393501962,1762737032946,-500.0,0.00023086,2]
[393501963,1762737032961,-1071.24831604,0.00023088,2]
[393501964,1762737032972,-29394.11351247,0.00023108,2]
[393501965,1762737032982,-168.0,0.00023115,2]
[393501966,1762737032992,-350.49816388,0.0002316,2]
[393501967,1762737033003,-400.56933015,0.0002316,2]
[393501968,1762737033014,-267.34996438,0.0002316,2]
[393501969,1762737033024,-305.54281643,0.0002316,2]
[393501970,1762737033035,-213.528,0.0002316,3]
[393501971,1762737033045,-861.64,0.00023176,10]
[393501972,1762737033055,-1570.36,0.00023176,10]
[393501973,1762737033065,-1308.63,0.00023176,10]
[393501974,1762737033081,-1090.53,0.00023176,10]
[393501975,1762737033091,-172.65859993,0.00023185,2]
[393501976,1762737033101,-37804.08078138,0.00023186,2]
[393501977,1762737033114,-17540.25308363,0.00023186,2]
[393502003,1762737038136,-2109.64665339,0.00022986,2]
[393502005,1762737038145,-908.77,0.00023176,10]
[393502007,1762737038156,-4964.83334662,0.00023186,2]
[393502009,1762737038168,-10657.10205813,0.00023186,2]
[393502038,1762737040398,-18361.80157762,0.00023186,2]
[393502057,1762737043611,-4127.11476122,0.00023186,2]
[393502080,1762737052015,493.85,0.00023054,120]
[393502081,1762737061095,180.30415711,0.000328,120]
[393502083,1762737065414,237.94102965,0.000328,120]
[393502084,1762737072084,318.68269251,0.000328,120]
[393502085,1762737076447,186.0916661,0.000328,120]
[393502086,1762737081679,182.5466039,0.000328,120]
[393502087,1762737083652,252.51400104,0.000328,120]
[393502088,1762737085609,177.80253763,0.000328,120]
[393502089,1762737090179,165.98838734,0.000328,120]
[393502090,1762737090364,221.23036306,0.000328,120]
[393502091,1762737095043,169.8666206,0.000328,120]
[393502092,1762737104539,161.39183951,0.000328,120]
[393502093,1762737125617,180.0,0.000328,120]
[393502094,1762737128032,249.14374193,0.000328,120]
[393502095,1762737158192,184.07380269,0.000328,120]
[393502096,1762737327970,200.0,0.00023699,120]
[393502097,1762737329203,200.0,0.00024884,120]
[393502098,1762737330463,200.0,0.00026128,120]
[393502099,1762737331755,200.0,0.00027434,120]
[393502100,1762737332964,200.0,0.00028806,120]
[393502101,1762737334202,200.0,0.00030246,120]
[393502102,1762737335633,200.0,0.00031759,120]
[393502103,1762737379745,190.35282372,0.000328,120]
[393502104,1762737420335,161.39183951,0.000328,120]
[393502105,1762737473646,184.07380268,0.000328,120]
[393502106,1762737600767,313.0,0.00032876,120]
[393502107,1762737632876,202.0,0.00023814,120]
[393502108,1762737634384,202.0,0.00025005,120]
[393502109,1762737635793,202.0,0.00026255,120]
[393502110,1762737700811,190.35282372,0.000328,120]
[393502111,1762737708790,386.9570231,0.0003287,120]
[393502112,1762737736659,161.39183951,0.000328,120]
[393502113,1762737787379,184.07380269,0.000328,120]
[393502114,1762737899421,1000.0,0.00032,120]
[393502116,1762737976879,906.5,0.00032876,120]
[393502119,1762738015776,190.35282372,0.000328,120]
[393502122,1762738050082,161.39183951,0.000328,120]
[393502136,1762738101608,184.07380268,0.000328,120]
[393502207,1762738232428,-925.0,0.00019058,2]
[393502209,1762738232439,-237.46492786,0.00019058,2]
[393502211,1762738232448,-150.0,0.00019122,2]
[393502213,1762738232458,-1138.73193221,0.00020087,2]
[393502215,1762738232468,-838.3455467,0.0002043,2]
[393502217,1762738232478,-237.46492786,0.00020533,2]
[393502219,1762738232487,-1200.0,0.00020779,2]
[393502220,1762738232497,-942.0,0.0002078,2]
[393502221,1762738232507,-300.0,0.0002078,2]
[393502222,1762738232517,-10000.01,0.00020781,2]
[393502223,1762738232526,-5000.0,0.00021,2]
[393502224,1762738232536,-295.4273575,0.00021,2]
[393502225,1762738232546,-160.0,0.00021012,3]
[393502226,1762738232557,-177.0,0.00021122,2]
[393502227,1762738232567,-160.0,0.00021123,4]
[393502228,1762738232577,-160.0,0.00021234,5]
[393502229,1762738232587,-160.0,0.00021345,6]
[393502230,1762738232596,-160.0,0.00021456,7]
[393502231,1762738232606,-500.0,0.00021523,2]
[393502232,1762738232615,-500.0,0.00021523,2]
[393502233,1762738232625,-160.0,0.00021567,8]
[393502234,1762738232634,-3185.15478737,0.00021636,2]
[393502235,1762738232644,-3185.15478737,0.00021644,2]
[393502236,1762738232655,-160.0,0.00021678,9]
[393502237,1762738232665,-160.0,0.00021789,10]
[393502238,1762738232675,-160.0,0.00021899,11]
[393502239,1762738232684,-237.46492786,0.00022008,2]
[393502240,1762738232693,-160.0,0.0002201,12]
[393502241,1762738232703,-500.0,0.00022073,2]
[393502242,1762738232712,-160.0,0.00022121,13]
[393502243,1762738232722,-3185.15478737,0.00022139,2]
[393502244,1762738232734,-160.0,0.00022232,14]
[393502245,1762738232743,-3185.15478737,0.00022282,2]
[393502246,1762738232752,-381.319,0.00022294,2]
[393502247,1762738232762,-500.0,0.000223,2]
[393502248,1762738232774,-500.0,0.000223,2]
[393502249,1762738232787,-1000.0,0.00022304,2]
[393502250,1762738232797,-640.60965656,0.00022304,2]
[393502251,1762738232807,-311.22976583,0.00022304,2]
[393502252,1762738232816,-153.6325499,0.00022304,2]
[393502253,1762738232826,-341.0,0.00022332,2]
[393502254,1762738232835,-160.0,0.00022343,15]
[393502255,1762738232844,-160.0,0.00022454,16]
[393502256,1762738232855,-341.0,0.00022501,2]
[393502257,1762738232865,-3185.15478737,0.00022514,2]
[393502258,1762738232874,-160.0,0.00022565,17]
[393502259,1762738232883,-306.9907479,0.00022571,2]
[393502260,1762738232896,-193.0092521,0.00022571,2]
[393502261,1762738232905,-500.0,0.00022571,2]
[393502262,1762738232917,-500.0,0.00022573,2]
[393502263,1762738232927,-357.57967752,0.00022573,2]
[393502264,1762738232937,-414.92008594,0.00022573,2]
[393502265,1762738232948,-85.07991406,0.00022573,2]
[393502266,1762738232958,-420.0,0.00022609,2]
[393502267,1762738232968,-447.47916705,0.00022673,2]
[393502268,1762738232978,-500.0,0.00022673,2]
[393502269,1762738232988,-160.0,0.00022676,18]
[393502270,1762738232997,-209.09091885,0.00022717,2]
[393502271,1762738233010,-131.90908115,0.00022717,2]
[393502272,1762738233019,-341.0,0.00022722,2]
[393502273,1762738233030,-215.66983879,0.00022735,2]
[393502307,1762738238496,-284.33016121,0.00022735,2]
[393502308,1762738238506,-151.0,0.00022735,2]
[393502309,1762738238516,-160.0,0.00022787,19]
[393502310,1762738238526,-500.0,0.0002279,2]
[393502311,1762738238536,-267.0,0.0002279,2]
[393502312,1762738238546,-1000.0,0.000228,2]
[393502313,1762738238557,-1000.0,0.000228,3]
[393502314,1762738238567,-500.0,0.00022845,2]
[393502315,1762738238577,-341.0,0.00022847,2]
[393502316,1762738238587,-347.03344328,0.0002286,5]
[393502317,1762738238597,-264.7071747,0.0002286,5]
[393502318,1762738238607,-3441.73,0.00022862,10]
[393502319,1762738238617,-1018.30765542,0.0002287,2]
[393502320,1762738238626,-1018.30765538,0.00022871,2]
[393502321,1762738238637,-1018.30765538,0.00022871,2]
[393502322,1762738238647,-500.0,0.00022871,2]
[393502323,1762738238657,-211.89637646,0.00022871,2]
[393502324,1762738238667,-500.0000001,0.00022871,2]
[393502325,1762738238677,-500.0,0.00022871,2]
[393502326,1762738238687,-1018.30765538,0.00022872,2]
[393502327,1762738238697,-1018.30765538,0.00022872,2]
[393502328,1762738238707,-6578.39823345,0.00022872,2]
[393502346,1762738240699,-1000.0,0.00022872,2]
[393502367,1762738244012,-4306.05791095,0.00022872,2]
[393502405,1762738330431,190.35282371,0.000328,120]
[393502434,1762738420238,184.07380269,0.000328,120]
[393502445,1762738438474,540.1,0.0003287,120]
[393502447,1762738446846,-450.79,0.00036864,30]
[393502448,1762738446875,-587.93999187,0.00036864,120]
[393502449,1762738446903,-150.0,0.00036864,20]
[393502450,1762738446930,-500.0,0.00036864,60]
[393502451,1762738446956,-514.87755909,0.00036864,60]
[393502452,1762738446987,-500.0,0.00036864,60]
[393502453,1762738447013,-500.0,0.00036864,60]
[393502454,1762738447040,-500.0,0.00036864,60]
[393502455,1762738447068,-500.0,0.00036864,60]
[393502456,1762738447189,-500.0,0.00036864,60]
[393502457,1762738447222,-500.0,0.00036864,60]
[393502458,1762738447252,-606.35282791,0.00036864,60]
[393502459,1762738447280,-500.0,0.00036864,60]
[393502460,1762738447309,-500.0,0.00036864,60]
[393502461,1762738447335,-500.0,0.00036864,60]
[393502462,1762738447360,-219.10278928,0.00036864,60]
[393502463,1762738447388,-553.72,0.00036864,60]
[393502464,1762738447414,-193.93898034,0.00036864,60]
[393502465,1762738447441,-500.0,0.00036864,60]
[393502466,1762738447467,-500.0,0.00036864,60]
[393502467,1762738447495,-500.0,0.00036864,60]
[393502468,1762738447524,-500.0,0.00036864,60]
[393502469,1762738447552,-157.46178305,0.00036864,60]
[393502470,1762738447579,-509.34113299,0.00036864,60]
[393502471,1762738447604,-500.0,0.00036864,60]
[393502472,1762738447634,-500.0,0.00036864,60]
[393502473,1762738447660,-329.45302166,0.00036864,60]
[393502474,1762738447685,-500.0,0.00036864,60]
[393502475,1762738447711,-520.66724661,0.00036864,60]
[393502476,1762738447738,-500.0,0.00036864,60]
[393502477,1762738447764,-500.0,0.00036864,60]
[393502478,1762738447790,-520.62436473,0.00036864,60]
[393502479,1762738447817,-500.0,0.00036864,60]
[393502480,1762738447842,-500.0,0.00036864,60]
[393502481,1762738447869,-500.0,0.00036864,60]
[393502482,1762738447895,-500.0,0.00036864,60]
[393502483,1762738447921,-500.0,0.00036864,60]
[393502484,1762738447946,-500.0,0.00036864,60]
[393502485,1762738447973,-500.0,0.00036864,60]
[393502486,1762738448000,-500.0,0.00036864,60]
[393502487,1762738448027,-500.0,0.00036864,60]